[Event "Late-Titled-Tuesday-Blitz-September-19-2023"]
[Site "Chess.com"]
[Date "2023.09.19"]
[Round "3"]
[White "pirulillo"]
[Black "tarno17"]
[Result "1-0"]
[WhiteElo "2381"]
[BlackElo "2163"]
[TimeControl "180+1"]
[EndTime "14:27:19 PDT"]
[Termination "pirulillo won by checkmate"]

1. e4 {[%clk 0:02:54.9]} 1... c5 {[%clk 0:02:58.3]} 2. Nf3 {[%clk 0:02:54.2]}
2... e6 {[%clk 0:02:54]} 3. d3 {[%clk 0:02:53.9]} 3... a6 {[%clk 0:02:53.7]} 4.
g3 {[%clk 0:02:53.7]} 4... b5 {[%clk 0:02:53.8]} 5. Bg2 {[%clk 0:02:53.9]} 5...
Bb7 {[%clk 0:02:54.5]} 6. O-O {[%clk 0:02:54.3]} 6... d6 {[%clk 0:02:52.2]} 7.
Re1 {[%clk 0:02:47]} 7... Qc7 {[%clk 0:02:52.2]} 8. Qe2 {[%clk 0:02:44.1]} 8...
Be7 {[%clk 0:02:50.1]} 9. Nbd2 {[%clk 0:02:39.2]} 9... Nf6 {[%clk 0:02:44.9]}
10. Nf1 {[%clk 0:02:16.7]} 10... Nbd7 {[%clk 0:02:38.5]} 11. N3d2 {[%clk
0:02:08.8]} 11... O-O {[%clk 0:02:25.5]} 12. f4 {[%clk 0:02:06.5]} 12... Rac8
{[%clk 0:02:16.3]} 13. g4 {[%clk 0:02:04.1]} 13... Ne8 {[%clk 0:02:08.3]} 14.
Ng3 {[%clk 0:01:57.9]} 14... c4 {[%clk 0:02:05]} 15. dxc4 {[%clk 0:01:20.9]}
15... bxc4 {[%clk 0:02:03.6]} 16. c3 {[%clk 0:01:17.8]} 16... Bh4 {[%clk
0:01:59.1]} 17. Ndf1 {[%clk 0:01:17.1]} 17... d5 {[%clk 0:01:38.8]} 18. exd5
{[%clk 0:01:06.4]} 18... Bxd5 {[%clk 0:01:33.2]} 19. Bxd5 {[%clk 0:01:05.5]}
19... exd5 {[%clk 0:01:34.1]} 20. Be3 {[%clk 0:01:05.5]} 20... Nef6 {[%clk
0:01:27.2]} 21. g5 {[%clk 0:01:04.9]} 21... Ne4 {[%clk 0:01:25.7]} 22. Qg4
{[%clk 0:00:57.7]} 22... Bxg3 {[%clk 0:01:07.9]} 23. Nxg3 {[%clk 0:00:58.6]}
23... Nxg3 {[%clk 0:01:05.4]} 24. hxg3 {[%clk 0:00:56.1]} 24... Nc5 {[%clk
0:00:55.2]} 25. Bd4 {[%clk 0:00:54.3]} 25... Rce8 {[%clk 0:00:32.6]} 26. Kg2
{[%clk 0:00:41.1]} 26... Rxe1 {[%clk 0:00:31.3]} 27. Rxe1 {[%clk 0:00:42]} 27...
Ne4 {[%clk 0:00:18]} 28. Rh1 {[%clk 0:00:40]} 28... f5 {[%clk 0:00:17.9]} 29.
Qh5 {[%clk 0:00:28.1]} 29... g6 {[%clk 0:00:18.1]} 30. Qxg6+ {[%clk 0:00:26.6]}
30... hxg6 {[%clk 0:00:17]} 31. Rh8+ {[%clk 0:00:27.2]} 31... Kf7 {[%clk
0:00:17.6]} 32. Rh7+ {[%clk 0:00:27.9]} 32... Ke6 {[%clk 0:00:15.9]} 33. Rxc7
{[%clk 0:00:28.8]} 33... Rb8 {[%clk 0:00:12.5]} 34. Rc6+ {[%clk 0:00:23.4]}
34... Kf7 {[%clk 0:00:11.6]} 35. Rxa6 {[%clk 0:00:14.4]} 35... Rxb2+ {[%clk
0:00:11.9]} 36. Kf3 {[%clk 0:00:13.5]} 36... Nd2+ {[%clk 0:00:11.3]} 37. Ke2
{[%clk 0:00:12.4]} 37... Ne4+ {[%clk 0:00:10.9]} 38. Kd1 {[%clk 0:00:12.5]}
38... Nxg3 {[%clk 0:00:07.6]} 39. Rf6+ {[%clk 0:00:11.8]} 39... Ke7 {[%clk
0:00:07.1]} 40. Rxg6 {[%clk 0:00:12.1]} 40... Rxa2 {[%clk 0:00:07.2]} 41. Rg7+
{[%clk 0:00:12.6]} 41... Kf8 {[%clk 0:00:06.7]} 42. Rb7 {[%clk 0:00:12.2]} 42...
Ne4 {[%clk 0:00:06]} 43. g6 {[%clk 0:00:12.1]} 43... Rd2+ {[%clk 0:00:05.2]} 44.
Kc1 {[%clk 0:00:12]} 44... Rg2 {[%clk 0:00:04.6]} 45. g7+ {[%clk 0:00:12.4]}
45... Kg8 {[%clk 0:00:03.8]} 46. Rb8+ {[%clk 0:00:12.8]} 46... Kh7 {[%clk
0:00:04.4]} 47. Rh8+ {[%clk 0:00:12]} 47... Kg6 {[%clk 0:00:03.2]} 48. g8=Q#
{[%clk 0:00:12.6]} 1-0

[Event "Late-Titled-Tuesday-Blitz-September-19-2023"]
[Site "Chess.com"]
[Date "2023.09.19"]
[Round "3"]
[White "AsaHoffmann"]
[Black "Grig1508"]
[Result "1-0"]
[WhiteElo "2368"]
[BlackElo "2045"]
[TimeControl "180+1"]
[EndTime "14:27:19 PDT"]
[Termination "AsaHoffmann won by checkmate"]

1. d4 {[%clk 0:03:00.9]} 1... d5 {[%clk 0:02:52]} 2. Bg5 {[%clk 0:02:58.4]} 2...
h6 {[%clk 0:02:51]} 3. Bh4 {[%clk 0:02:53.8]} 3... Nd7 {[%clk 0:02:50.4]} 4. c4
{[%clk 0:02:53.1]} 4... c6 {[%clk 0:02:49.6]} 5. Nc3 {[%clk 0:02:51.4]} 5...
Ngf6 {[%clk 0:02:47.8]} 6. cxd5 {[%clk 0:02:50.2]} 6... cxd5 {[%clk 0:02:47.1]}
7. e3 {[%clk 0:02:50.1]} 7... e6 {[%clk 0:02:46.9]} 8. Bd3 {[%clk 0:02:49.7]}
8... Bb4 {[%clk 0:02:44.7]} 9. Qb3 {[%clk 0:02:45.4]} 9... Ba5 {[%clk
0:02:33.5]} 10. f4 {[%clk 0:02:42.6]} 10... Qc7 {[%clk 0:02:16.4]} 11. Nf3
{[%clk 0:02:37]} 11... Ng4 {[%clk 0:02:04.9]} 12. Ke2 {[%clk 0:02:02.9]} 12...
O-O {[%clk 0:01:58.6]} 13. Rac1 {[%clk 0:02:01.1]} 13... Bxc3 {[%clk 0:01:50.3]}
14. Rxc3 {[%clk 0:02:00.2]} 14... Qd6 {[%clk 0:01:50.5]} 15. h3 {[%clk
0:01:59.1]} 15... Ngf6 {[%clk 0:01:47.4]} 16. Ne5 {[%clk 0:01:58.3]} 16... Ne4
{[%clk 0:01:38.1]} 17. Bxe4 {[%clk 0:01:55.2]} 17... dxe4 {[%clk 0:01:38]} 18.
Rhc1 {[%clk 0:01:54.6]} 18... Nb6 {[%clk 0:01:33.2]} 19. Qa3 {[%clk 0:01:50.5]}
19... Qxa3 {[%clk 0:01:22.5]} 20. Rxa3 {[%clk 0:01:49.9]} 20... Nd5 {[%clk
0:01:12.3]} 21. g4 {[%clk 0:01:42]} 21... f6 {[%clk 0:01:06.3]} 22. Nc4 {[%clk
0:01:41.3]} 22... Rd8 {[%clk 0:01:01.5]} 23. Be1 {[%clk 0:01:37.7]} 23... b6
{[%clk 0:01:00.4]} 24. Nd2 {[%clk 0:01:31.9]} 24... f5 {[%clk 0:00:57.4]} 25.
Nc4 {[%clk 0:01:28.1]} 25... a5 {[%clk 0:00:54.4]} 26. Ne5 {[%clk 0:01:26.9]}
26... Ba6+ {[%clk 0:00:54.8]} 27. Kf2 {[%clk 0:01:27]} 27... Rac8 {[%clk
0:00:53.7]} 28. Rxc8 {[%clk 0:01:22.2]} 28... Rxc8 {[%clk 0:00:53.6]} 29. Bc3
{[%clk 0:01:20.6]} 29... Bb5 {[%clk 0:00:37.2]} 30. Rb3 {[%clk 0:00:52.2]} 30...
Ba4 {[%clk 0:00:32.4]} 31. Ra3 {[%clk 0:00:52.1]} 31... Be8 {[%clk 0:00:30.9]}
32. Rb3 {[%clk 0:00:49.8]} 32... g5 {[%clk 0:00:29.9]} 33. fxg5 {[%clk
0:00:46.4]} 33... hxg5 {[%clk 0:00:30]} 34. gxf5 {[%clk 0:00:44.3]} 34... exf5
{[%clk 0:00:29.7]} 35. Bd2 {[%clk 0:00:42.3]} 35... Kg7 {[%clk 0:00:29.4]} 36.
Ke1 {[%clk 0:00:41.8]} 36... Ba4 {[%clk 0:00:24.5]} 37. Ra3 {[%clk 0:00:41.1]}
37... Bb5 {[%clk 0:00:23.5]} 38. Rb3 {[%clk 0:00:39.1]} 38... Ba6 {[%clk
0:00:22.3]} 39. Ra3 {[%clk 0:00:37]} 39... Kf6 {[%clk 0:00:19.6]} 40. b4 {[%clk
0:00:36.2]} 40... Nxb4 {[%clk 0:00:16.3]} 41. Bxb4 {[%clk 0:00:35.6]} 41... axb4
{[%clk 0:00:16.4]} 42. Rxa6 {[%clk 0:00:35.4]} 42... Rc1+ {[%clk 0:00:17.3]} 43.
Kd2 {[%clk 0:00:35.3]} 43... Rh1 {[%clk 0:00:14.3]} 44. Rxb6+ {[%clk 0:00:34.6]}
44... Ke7 {[%clk 0:00:13.3]} 45. Rxb4 {[%clk 0:00:33.9]} 45... Rxh3 {[%clk
0:00:13.1]} 46. Rb7+ {[%clk 0:00:32.1]} 46... Ke6 {[%clk 0:00:11.4]} 47. Rb6+
{[%clk 0:00:32]} 47... Ke7 {[%clk 0:00:11.5]} 48. d5 {[%clk 0:00:31.9]} 48... g4
{[%clk 0:00:11.4]} 49. Re6+ {[%clk 0:00:30.3]} 49... Kd8 {[%clk 0:00:11]} 50. d6
{[%clk 0:00:30.3]} 50... Rh2+ {[%clk 0:00:10.7]} 51. Kc3 {[%clk 0:00:30.5]}
51... Rxa2 {[%clk 0:00:10.4]} 52. Re7 {[%clk 0:00:30.5]} 52... Ra3+ {[%clk
0:00:09.9]} 53. Kb4 {[%clk 0:00:30.2]} 53... Rd3 {[%clk 0:00:09.8]} 54. Nc6+
{[%clk 0:00:29.7]} 54... Kc8 {[%clk 0:00:08.8]} 55. Rc7# {[%clk 0:00:29.6]} 1-0

[Event "Late-Titled-Tuesday-Blitz-September-19-2023"]
[Site "Chess.com"]
[Date "2023.09.19"]
[Round "3"]
[White "karinachess1"]
[Black "Firouzja2003"]
[Result "0-1"]
[WhiteElo "2606"]
[BlackElo "3064"]
[TimeControl "180+1"]
[EndTime "14:27:20 PDT"]
[Termination "Firouzja2003 won on time"]

1. d4 {[%clk 0:02:59.3]} 1... Nf6 {[%clk 0:02:59.6]} 2. c4 {[%clk 0:02:59.2]}
2... g6 {[%clk 0:02:58.9]} 3. g3 {[%clk 0:02:56.9]} 3... Bg7 {[%clk 0:02:57.8]}
4. Bg2 {[%clk 0:02:57]} 4... O-O {[%clk 0:02:44]} 5. Nc3 {[%clk 0:02:55.8]} 5...
d6 {[%clk 0:02:44]} 6. e4 {[%clk 0:02:54.3]} 6... c5 {[%clk 0:02:34.5]} 7. Nf3
{[%clk 0:02:53.7]} 7... Nc6 {[%clk 0:02:31.2]} 8. d5 {[%clk 0:02:47.3]} 8... Na5
{[%clk 0:02:31.2]} 9. Nd2 {[%clk 0:02:48]} 9... e6 {[%clk 0:02:30.8]} 10. O-O
{[%clk 0:02:45.6]} 10... exd5 {[%clk 0:02:31.1]} 11. cxd5 {[%clk 0:02:46.5]}
11... Rb8 {[%clk 0:02:30.3]} 12. a4 {[%clk 0:02:46.4]} 12... a6 {[%clk
0:02:30.4]} 13. f4 {[%clk 0:02:27.2]} 13... Ng4 {[%clk 0:02:25.2]} 14. Nf3
{[%clk 0:02:20.7]} 14... c4 {[%clk 0:02:13.1]} 15. Qc2 {[%clk 0:02:08.5]} 15...
Nb3 {[%clk 0:02:10.6]} 16. Rb1 {[%clk 0:02:06.2]} 16... Nxc1 {[%clk 0:02:10.4]}
17. Rbxc1 {[%clk 0:01:46.3]} 17... Ne3 {[%clk 0:02:08.7]} 18. Qf2 {[%clk
0:01:46.5]} 18... Nxf1 {[%clk 0:02:08.1]} 19. Rxf1 {[%clk 0:01:47.4]} 19... b5
{[%clk 0:02:06.5]} 20. e5 {[%clk 0:01:40.1]} 20... Qb6 {[%clk 0:01:25]} 21. Qxb6
{[%clk 0:01:38.4]} 21... Rxb6 {[%clk 0:01:23.9]} 22. a5 {[%clk 0:01:39.1]} 22...
Rb7 {[%clk 0:01:22.2]} 23. Ne4 {[%clk 0:01:36.9]} 23... dxe5 {[%clk 0:01:01.1]}
24. Nxe5 {[%clk 0:01:17.9]} 24... Rd8 {[%clk 0:01:00]} 25. d6 {[%clk 0:01:09.6]}
25... Bf5 {[%clk 0:00:46]} 26. Nc5 {[%clk 0:00:53.9]} 26... Ra7 {[%clk
0:00:40.4]} 27. Rd1 {[%clk 0:00:44.6]} 27... Bf8 {[%clk 0:00:28.8]} 28. Nb7
{[%clk 0:00:33.3]} 28... Rxb7 {[%clk 0:00:15.5]} 29. Bxb7 {[%clk 0:00:34.2]}
29... Bxd6 {[%clk 0:00:16.1]} 30. Kg2 {[%clk 0:00:30.7]} 30... Bc2 {[%clk
0:00:03.7]} 31. Rd2 {[%clk 0:00:26.5]} 31... Bd3 {[%clk 0:00:04.1]} 32. Nxd3
{[%clk 0:00:18.5]} 32... Bb4 {[%clk 0:00:04.5]} 33. Rd1 {[%clk 0:00:12]} 33...
cxd3 {[%clk 0:00:04.9]} 34. Bxa6 {[%clk 0:00:12.1]} 34... d2 {[%clk 0:00:04.4]}
35. Bxb5 {[%clk 0:00:12.4]} 35... Bxa5 {[%clk 0:00:04.3]} 36. Be2 {[%clk
0:00:06.1]} 36... Rb8 {[%clk 0:00:03.9]} 37. Rb1 {[%clk 0:00:04.5]} 37... Bc3
{[%clk 0:00:02.7]} 38. b3 {[%clk 0:00:03.8]} 38... Re8 {[%clk 0:00:02.7]} 39.
Kf1 {[%clk 0:00:03.3]} 39... Bb4 {[%clk 0:00:02.5]} 40. Rd1 {[%clk 0:00:02.6]}
40... Rc8 {[%clk 0:00:02.8]} 41. Bf3 {[%clk 0:00:02.1]} 41... Re8 {[%clk
0:00:02.8]} 42. Be2 {[%clk 0:00:02.3]} 42... Re3 {[%clk 0:00:03.2]} 43. Rb1
{[%clk 0:00:01.4]} 43... Rc3 {[%clk 0:00:03.4]} 0-1

[Event "Late-Titled-Tuesday-Blitz-September-19-2023"]
[Site "Chess.com"]
[Date "2023.09.19"]
[Round "3"]
[White "GoltsevDmitry2000"]
[Black "K_A_S_T_O_R"]
[Result "1/2-1/2"]
[WhiteElo "2657"]
[BlackElo "2927"]
[TimeControl "180+1"]
[EndTime "14:27:26 PDT"]
[Termination "Game drawn - insufficient material"]

1. e4 {[%clk 0:02:58.3]} 1... c5 {[%clk 0:02:59.8]} 2. Nf3 {[%clk 0:02:57.4]}
2... d6 {[%clk 0:02:59.9]} 3. d4 {[%clk 0:02:56.9]} 3... cxd4 {[%clk 0:03:00.2]}
4. Nxd4 {[%clk 0:02:57.8]} 4... Nf6 {[%clk 0:03:00.2]} 5. Nc3 {[%clk 0:02:58.2]}
5... a6 {[%clk 0:03:00]} 6. f3 {[%clk 0:02:57.8]} 6... e6 {[%clk 0:02:55.4]} 7.
Be3 {[%clk 0:02:56.6]} 7... h5 {[%clk 0:02:52.7]} 8. Qd2 {[%clk 0:02:55.9]} 8...
Nbd7 {[%clk 0:02:48.8]} 9. Be2 {[%clk 0:02:53.3]} 9... Qc7 {[%clk 0:02:42.5]}
10. O-O {[%clk 0:02:48.6]} 10... Be7 {[%clk 0:02:41.4]} 11. Rad1 {[%clk
0:02:47.5]} 11... b5 {[%clk 0:02:33.9]} 12. Bxb5 {[%clk 0:02:42.4]} 12... axb5
{[%clk 0:02:33.7]} 13. Ndxb5 {[%clk 0:02:43.3]} 13... Qb8 {[%clk 0:02:33.9]} 14.
Nxd6+ {[%clk 0:02:43.4]} 14... Bxd6 {[%clk 0:02:33.4]} 15. Qxd6 {[%clk
0:02:44.3]} 15... Qxd6 {[%clk 0:02:16.1]} 16. Rxd6 {[%clk 0:02:43.9]} 16... Ne5
{[%clk 0:02:13.6]} 17. b3 {[%clk 0:02:37.4]} 17... O-O {[%clk 0:02:12.2]} 18. a4
{[%clk 0:02:29.9]} 18... Ba6 {[%clk 0:02:11.5]} 19. Rfd1 {[%clk 0:02:28.3]}
19... Rfc8 {[%clk 0:02:09.1]} 20. Bd4 {[%clk 0:02:25.9]} 20... Nc6 {[%clk
0:02:05.9]} 21. Bxf6 {[%clk 0:02:13.6]} 21... gxf6 {[%clk 0:02:05.5]} 22. Nb5
{[%clk 0:02:10.2]} 22... Na5 {[%clk 0:01:56.9]} 23. R1d2 {[%clk 0:01:49.3]}
23... Bxb5 {[%clk 0:01:46.7]} 24. axb5 {[%clk 0:01:48.6]} 24... Rab8 {[%clk
0:01:39.4]} 25. b6 {[%clk 0:01:08.2]} 25... Nc6 {[%clk 0:01:34.7]} 26. f4 {[%clk
0:00:48.1]} 26... Rxb6 {[%clk 0:01:27.2]} 27. f5 {[%clk 0:00:47.3]} 27... exf5
{[%clk 0:01:23.2]} 28. exf5 {[%clk 0:00:47.1]} 28... Rb5 {[%clk 0:01:06.3]} 29.
Rxf6 {[%clk 0:00:45.9]} 29... Ne7 {[%clk 0:01:02.9]} 30. h3 {[%clk 0:00:29.4]}
30... Kg7 {[%clk 0:00:49]} 31. Rfd6 {[%clk 0:00:21]} 31... Rxf5 {[%clk
0:00:44.2]} 32. c4 {[%clk 0:00:20.1]} 32... Nc6 {[%clk 0:00:43.5]} 33. R2d5
{[%clk 0:00:17.7]} 33... Ne7 {[%clk 0:00:35]} 34. Rxf5 {[%clk 0:00:16.9]} 34...
Nxf5 {[%clk 0:00:35.7]} 35. Rd5 {[%clk 0:00:17.8]} 35... Kf6 {[%clk 0:00:35.5]}
36. g4 {[%clk 0:00:15.9]} 36... hxg4 {[%clk 0:00:35.5]} 37. hxg4 {[%clk
0:00:16.8]} 37... Ne3 {[%clk 0:00:30.9]} 38. g5+ {[%clk 0:00:17.3]} 38... Kg6
{[%clk 0:00:31.3]} 39. Rb5 {[%clk 0:00:18]} 39... Nf5 {[%clk 0:00:30.8]} 40. Kg2
{[%clk 0:00:16.3]} 40... Nd4 {[%clk 0:00:26]} 41. Rb7 {[%clk 0:00:14.4]} 41...
Ne6 {[%clk 0:00:22.6]} 42. Rb5 {[%clk 0:00:07.5]} 42... Nxg5 {[%clk 0:00:21.9]}
43. c5 {[%clk 0:00:08]} 43... Ne6 {[%clk 0:00:18.5]} 44. b4 {[%clk 0:00:08.3]}
44... Kf6 {[%clk 0:00:18.5]} 45. Rb6 {[%clk 0:00:08.3]} 45... Ke5 {[%clk
0:00:18]} 46. c6 {[%clk 0:00:08.8]} 46... Kd6 {[%clk 0:00:17.8]} 47. b5 {[%clk
0:00:09.4]} 47... Nc5 {[%clk 0:00:16]} 48. c7+ {[%clk 0:00:06.7]} 48... Kxc7
{[%clk 0:00:15.4]} 49. Rf6 {[%clk 0:00:06.9]} 49... Rf8 {[%clk 0:00:15.4]} 50.
Rc6+ {[%clk 0:00:07.1]} 50... Kd7 {[%clk 0:00:15.8]} 51. Rxc5 {[%clk 0:00:08]}
51... Kd6 {[%clk 0:00:16.2]} 52. Rf5 {[%clk 0:00:08.2]} 52... Ke6 {[%clk
0:00:16.3]} 53. Rf3 {[%clk 0:00:08.6]} 53... f5 {[%clk 0:00:16.8]} 54. Rb3
{[%clk 0:00:09]} 54... Kd5 {[%clk 0:00:15.9]} 55. b6 {[%clk 0:00:09.5]} 55...
Kc6 {[%clk 0:00:16.2]} 56. b7 {[%clk 0:00:10.1]} 56... Rb8 {[%clk 0:00:16.7]}
57. Kf3 {[%clk 0:00:10.7]} 57... Rxb7 {[%clk 0:00:17.2]} 58. Rxb7 {[%clk
0:00:11.4]} 58... Kxb7 {[%clk 0:00:17.8]} 59. Kf4 {[%clk 0:00:12.3]} 59... Kc6
{[%clk 0:00:18.1]} 60. Kxf5 {[%clk 0:00:13.2]} 1/2-1/2

[Event "Late-Titled-Tuesday-Blitz-September-19-2023"]
[Site "Chess.com"]
[Date "2023.09.19"]
[Round "3"]
[White "Vaathi_Coming"]
[Black "Mesa_1"]
[Result "1-0"]
[WhiteElo "2875"]
[BlackElo "2593"]
[TimeControl "180+1"]
[EndTime "14:27:29 PDT"]
[Termination "Vaathi_Coming won on time"]

1. g3 {[%clk 0:01:48.2]} 1... e5 {[%clk 0:02:57.6]} 2. c4 {[%clk 0:01:46.6]}
2... c6 {[%clk 0:02:54.1]} 3. d4 {[%clk 0:01:44.8]} 3... e4 {[%clk 0:02:51.4]}
4. d5 {[%clk 0:01:43.1]} 4... Bb4+ {[%clk 0:02:46.6]} 5. Bd2 {[%clk 0:01:41]}
5... Qe7 {[%clk 0:02:46.9]} 6. Nc3 {[%clk 0:01:39.8]} 6... Nf6 {[%clk
0:02:44.3]} 7. Bg2 {[%clk 0:01:38.5]} 7... O-O {[%clk 0:02:39.9]} 8. Nh3 {[%clk
0:01:35.3]} 8... d6 {[%clk 0:02:37.6]} 9. Nf4 {[%clk 0:01:34.9]} 9... Na6 {[%clk
0:02:27.6]} 10. O-O {[%clk 0:01:30.8]} 10... Bf5 {[%clk 0:02:17.9]} 11. a3
{[%clk 0:01:21.1]} 11... Bxc3 {[%clk 0:02:17.9]} 12. Bxc3 {[%clk 0:01:20.7]}
12... Rfe8 {[%clk 0:02:16]} 13. dxc6 {[%clk 0:01:04.8]} 13... bxc6 {[%clk
0:02:13.5]} 14. b4 {[%clk 0:01:05.7]} 14... Rad8 {[%clk 0:02:10.1]} 15. Qa4
{[%clk 0:01:04.8]} 15... Nb8 {[%clk 0:02:03.1]} 16. Rad1 {[%clk 0:01:04.9]}
16... h6 {[%clk 0:01:48.2]} 17. Qa5 {[%clk 0:00:55.3]} 17... Bh7 {[%clk
0:01:39]} 18. e3 {[%clk 0:00:38.5]} 18... Ng4 {[%clk 0:01:29.6]} 19. b5 {[%clk
0:00:38.1]} 19... Ne5 {[%clk 0:01:27.3]} 20. Qa4 {[%clk 0:00:34.9]} 20... g5
{[%clk 0:01:18.7]} 21. Ne2 {[%clk 0:00:34.2]} 21... Nf3+ {[%clk 0:01:16.3]} 22.
Kh1 {[%clk 0:00:33.7]} 22... c5 {[%clk 0:01:13.5]} 23. Bb2 {[%clk 0:00:21.3]}
23... Bf5 {[%clk 0:00:58.6]} 24. Nc3 {[%clk 0:00:20.3]} 24... Qf6 {[%clk
0:00:41.5]} 25. Qc2 {[%clk 0:00:17.8]} 25... Qg6 {[%clk 0:00:41.3]} 26. Nd5
{[%clk 0:00:17.7]} 26... Nd7 {[%clk 0:00:38.6]} 27. Qc3 {[%clk 0:00:12.8]} 27...
Nde5 {[%clk 0:00:38.2]} 28. a4 {[%clk 0:00:08.6]} 28... Kf8 {[%clk 0:00:38.7]}
29. Bxf3 {[%clk 0:00:07.9]} 29... exf3 {[%clk 0:00:36]} 30. Rg1 {[%clk
0:00:08.1]} 30... Qh5 {[%clk 0:00:29.6]} 31. Nf6 {[%clk 0:00:06.8]} 31... Qh3
{[%clk 0:00:27.5]} 32. Rd5 {[%clk 0:00:04.8]} 32... Re6 {[%clk 0:00:23.8]} 33.
Qd2 {[%clk 0:00:03.8]} 33... h5 {[%clk 0:00:12.6]} 34. Bxe5 {[%clk 0:00:02.9]}
34... h4 {[%clk 0:00:13.1]} 35. g4 {[%clk 0:00:02.4]} 35... Bg6 {[%clk
0:00:11.1]} 36. Bxd6+ {[%clk 0:00:03]} 36... Kg7 {[%clk 0:00:11.1]} 37. Nh5+
{[%clk 0:00:03.7]} 37... Bxh5 {[%clk 0:00:11.2]} 38. gxh5 {[%clk 0:00:04.6]}
38... g4 {[%clk 0:00:07.7]} 39. Be5+ {[%clk 0:00:05]} 39... Rxe5 {[%clk
0:00:08.2]} 40. Rxd8 {[%clk 0:00:05.6]} 40... g3 {[%clk 0:00:09]} 41. fxg3
{[%clk 0:00:05.8]} 41... f2 {[%clk 0:00:07.5]} 42. Qxf2 {[%clk 0:00:05.5]} 42...
Rf5 {[%clk 0:00:08.2]} 43. Qg2 {[%clk 0:00:05.4]} 43... Qg4 {[%clk 0:00:08.9]}
44. gxh4 {[%clk 0:00:05.1]} 1-0

[Event "Late-Titled-Tuesday-Blitz-September-19-2023"]
[Site "Chess.com"]
[Date "2023.09.19"]
[Round "3"]
[White "jaskol95"]
[Black "traack"]
[Result "0-1"]
[WhiteElo "2541"]
[BlackElo "2374"]
[TimeControl "180+1"]
[EndTime "14:27:30 PDT"]
[Termination "traack won by checkmate"]

1. e4 {[%clk 0:03:00.9]} 1... c5 {[%clk 0:02:59.9]} 2. Nf3 {[%clk 0:03:01]} 2...
e6 {[%clk 0:03:00.4]} 3. b4 {[%clk 0:03:00.4]} 3... b6 {[%clk 0:02:54]} 4. b5
{[%clk 0:02:49.4]} 4... Bb7 {[%clk 0:02:52.4]} 5. Nc3 {[%clk 0:02:49.2]} 5...
Nf6 {[%clk 0:02:49.3]} 6. e5 {[%clk 0:02:41.7]} 6... Nd5 {[%clk 0:02:49]} 7.
Nxd5 {[%clk 0:02:41.8]} 7... Bxd5 {[%clk 0:02:48.6]} 8. c4 {[%clk 0:02:40.8]}
8... Bb7 {[%clk 0:02:46.2]} 9. Bb2 {[%clk 0:02:33.7]} 9... d5 {[%clk 0:02:45.8]}
10. exd6 {[%clk 0:02:32.7]} 10... Qxd6 {[%clk 0:02:43.7]} 11. Be2 {[%clk
0:02:28.6]} 11... Nd7 {[%clk 0:02:43.7]} 12. O-O {[%clk 0:02:27.9]} 12... Nf6
{[%clk 0:02:42.6]} 13. d4 {[%clk 0:01:59.3]} 13... Be7 {[%clk 0:02:30.2]} 14.
dxc5 {[%clk 0:01:56.4]} 14... Qxc5 {[%clk 0:02:30.2]} 15. a4 {[%clk 0:01:46.4]}
15... O-O {[%clk 0:02:07.2]} 16. a5 {[%clk 0:01:42.3]} 16... Rfd8 {[%clk
0:02:04.1]} 17. Qb3 {[%clk 0:01:42.5]} 17... Qb4 {[%clk 0:01:59]} 18. Qxb4
{[%clk 0:01:39]} 18... Bxb4 {[%clk 0:01:57.2]} 19. axb6 {[%clk 0:01:31.6]} 19...
axb6 {[%clk 0:01:56.6]} 20. Rxa8 {[%clk 0:01:31.9]} 20... Bxa8 {[%clk
0:01:52.4]} 21. Rd1 {[%clk 0:01:06.2]} 21... Rxd1+ {[%clk 0:01:47.6]} 22. Bxd1
{[%clk 0:01:07.1]} 22... Bc5 {[%clk 0:01:46.6]} 23. Bc2 {[%clk 0:00:44.8]} 23...
Bxf3 {[%clk 0:01:26.6]} 24. gxf3 {[%clk 0:00:45]} 24... Nh5 {[%clk 0:01:27.5]}
25. Be5 {[%clk 0:00:33.7]} 25... f6 {[%clk 0:01:23]} 26. Bc7 {[%clk 0:00:33.8]}
26... e5 {[%clk 0:01:19.3]} 27. Be4 {[%clk 0:00:24.3]} 27... Nf4 {[%clk
0:01:19.6]} 28. Kf1 {[%clk 0:00:24.1]} 28... Kf7 {[%clk 0:01:15.3]} 29. Ke1
{[%clk 0:00:20.1]} 29... g6 {[%clk 0:01:14.5]} 30. Bd5+ {[%clk 0:00:16.6]} 30...
Ke7 {[%clk 0:01:12.7]} 31. Bg8 {[%clk 0:00:12.6]} 31... h5 {[%clk 0:01:06.3]}
32. Kf1 {[%clk 0:00:08.6]} 32... h4 {[%clk 0:01:01.4]} 33. Bb8 {[%clk
0:00:02.3]} 33... h3 {[%clk 0:01:01.2]} 34. Kg1 {[%clk 0:00:02.6]} 34... Nd3
{[%clk 0:00:56.2]} 35. Bd5 {[%clk 0:00:02.1]} 35... Nxf2 {[%clk 0:00:53.2]} 36.
Kf1 {[%clk 0:00:02.3]} 36... Nd3 {[%clk 0:00:51.2]} 37. Ke2 {[%clk 0:00:02.9]}
37... Nf4+ {[%clk 0:00:50.7]} 38. Kf1 {[%clk 0:00:03.6]} 38... Ng2 {[%clk
0:00:39.9]} 39. Ke2 {[%clk 0:00:03.5]} 39... Ne3 {[%clk 0:00:37.4]} 40. Be4
{[%clk 0:00:03.5]} 40... Nf5 {[%clk 0:00:37.6]} 41. Bxf5 {[%clk 0:00:03.4]}
41... gxf5 {[%clk 0:00:37.6]} 42. f4 {[%clk 0:00:04]} 42... e4 {[%clk
0:00:33.6]} 43. Kf1 {[%clk 0:00:04.2]} 43... Kd7 {[%clk 0:00:27.1]} 44. Ba7
{[%clk 0:00:03.9]} 44... Kc7 {[%clk 0:00:26.5]} 45. Ke2 {[%clk 0:00:04.5]} 45...
Kb7 {[%clk 0:00:26.8]} 46. Kd2 {[%clk 0:00:04.1]} 46... Kxa7 {[%clk 0:00:26.4]}
47. Ke2 {[%clk 0:00:05]} 47... Bg1 {[%clk 0:00:25.9]} 48. Kf1 {[%clk 0:00:05.9]}
48... Bxh2 {[%clk 0:00:26.3]} 49. Kf2 {[%clk 0:00:06.7]} 49... Bxf4 {[%clk
0:00:26.9]} 50. Kg1 {[%clk 0:00:07.2]} 50... Bd6 {[%clk 0:00:26.3]} 51. Kh1
{[%clk 0:00:07.7]} 51... f4 {[%clk 0:00:23.4]} 52. c5 {[%clk 0:00:07.4]} 52...
Bxc5 {[%clk 0:00:22.1]} 53. Kh2 {[%clk 0:00:08.1]} 53... f3 {[%clk 0:00:20.5]}
54. Kg3 {[%clk 0:00:08.7]} 54... f2 {[%clk 0:00:19.9]} 55. Kh2 {[%clk
0:00:09.6]} 55... f1=Q {[%clk 0:00:16.6]} 56. Kg3 {[%clk 0:00:10.3]} 56... Qf3+
{[%clk 0:00:16.7]} 57. Kh4 {[%clk 0:00:10.2]} 57... Bf2# {[%clk 0:00:15.2]} 0-1